lending/lending_fUSD_20240110
["ID","MTS","AMOUNT","RATE_DAILY","PERIOD"]
[311010114,1704861060862,-500.0,0.00035616,2]
[311010115,1704861060871,-1244.5,0.00035616,2]
[311010116,1704861060880,-1071.2,0.00035616,2]
[311010117,1704861060889,-500.0,0.00035616,2]
[311010118,1704861060898,-868.22,0.00035616,2]
[311010119,1704861060907,-511.1,0.00035616,2]
[311010120,1704861060916,-1846.94,0.00035616,2]
[311010121,1704861060925,-1243.43,0.00035616,2]
[311010122,1704861060933,-5218.82,0.00035616,2]
[311010123,1704861060942,-1141.27,0.00035616,2]
[311010124,1704861060950,-500.0,0.00035616,2]
[311010125,1704861060958,-2820.62,0.00035616,2]
[311010126,1704861060967,-500.0,0.00035616,2]
[311010127,1704861060975,-907.98,0.00035616,2]
[311010128,1704861060983,-500.0,0.00035616,2]
[311010129,1704861060991,-500.0,0.00035616,2]
[311010130,1704861061000,-1386.28,0.00035616,2]
[311010131,1704861061010,-1377.22,0.00035616,2]
[311010132,1704861061019,-2727.63,0.00035616,2]
[311010133,1704861061028,-778.73,0.00035616,2]
[311010134,1704861061036,-1974.42,0.00035616,2]
[311010135,1704861061044,-500.0,0.00035616,2]
[311010136,1704861061052,-500.0,0.00035616,2]
[311010137,1704861061060,-1796.53,0.00035616,2]
[311010138,1704861061068,-500.0,0.00035616,2]
[311010139,1704861061077,-500.0,0.00035616,2]
[311010140,1704861061086,-1709.96,0.00035616,2]
[311010141,1704861061094,-5134.96,0.00035616,2]
[311010142,1704861061103,-1561.21,0.00035616,2]
[311010143,1704861061111,-500.0,0.00035616,2]
[311010144,1704861061120,-560.59,0.00035616,2]
[311010145,1704861061129,-500.0,0.00035616,2]
[311010146,1704861061138,-523.22,0.00035616,2]
[311010147,1704861061147,-502.69616183,0.00035616,2]
[311010148,1704861061156,-1702.83,0.00035616,2]
[311010149,1704861061166,-4487.98,0.00035616,2]
[311010150,1704861061175,-1060.97,0.00035616,2]
[311010151,1704861061185,-2261.08,0.00035616,2]
[311010152,1704861061195,-500.0,0.00035616,2]
[311010153,1704861061204,-500.0,0.00035616,2]
[311010154,1704861061213,-718.7,0.00035616,2]
[311010155,1704861061223,-500.0,0.00035616,2]
[311010156,1704861061232,-3906.71,0.00035616,2]
[311010157,1704861061242,-500.0,0.00035616,2]
[311010158,1704861061252,-744.42,0.00035616,2]
[311010159,1704861061261,-3014.1,0.00035616,2]
[311010160,1704861061270,-500.0,0.00035616,2]
[311010161,1704861061279,-500.0,0.00035616,2]
[311010162,1704861061289,-951.16,0.00035616,2]
[311010163,1704861061298,-500.0,0.00035616,2]
[311010164,1704861061307,-2209.52,0.00035616,2]
[311010165,1704861061317,-854.51,0.00035616,2]
[311010166,1704861061326,-715.3,0.00035616,2]
[311010167,1704861061336,-947.53,0.00035616,2]
[311010168,1704861061345,-820.46,0.00035616,2]
[311010169,1704861061354,-13100.14,0.00035616,2]
[311010170,1704861061364,-1368.58765582,0.00035616,2]
[311010171,1704861062442,-263.32642297,0.00035616,2]
[311010172,1704861062459,-4283.1475,0.00035616,2]
[311010173,1704861062474,-270.58952675,0.00035616,2]
[311010176,1704861093468,1932.752725,0.0003718,30]
[311010177,1704861099306,611.5252276,0.0003718,120]
[311010193,1704861171152,80062.21434361,0.0003718,30]
[311010207,1704861194054,304.949637,0.0003718,30]
[311010214,1704861253715,500.0,0.0003718,120]
[311010217,1704861592029,1965.990009,0.00037181,30]
[311010219,1704861732810,25562.91124776,0.00037181,30]
[311010220,1704861993115,1932.752725,0.00037181,30]
[311010222,1704862083885,34122.42899502,0.00037181,30]
[311010223,1704862088042,304.949637,0.00037181,30]
[311010224,1704862095719,25067.89357596,0.00037181,30]
[311010225,1704862128126,1000.0,0.00037181,30]
[311010226,1704862136462,1000.0,0.00037181,30]
[311010230,1704862152181,1000.0,0.00037181,30]
[311010237,1704862218457,2000.0,0.00037181,30]
[311010238,1704862225146,2000.0,0.00037181,30]
[311010242,1704862231714,-350.0,0.00025,3]
[311010244,1704862231725,-69.40273139,0.00025,2]
[311010250,1704862231771,-666.60095748,0.00025,2]
[311010252,1704862231837,-845.63312845,0.00025,2]
[311010253,1704862231845,-465.98421422,0.00025,2]
[311010254,1704862231887,-550.96609528,0.00025,2]
[311010255,1704862231897,-400.0,0.00027,3]
[311010256,1704862231906,-250.0,0.000274,2]
[311010257,1704862231918,-202.68612241,0.0002882,2]
[311010258,1704862231927,-159.11329039,0.00028821,2]
[311010259,1704862231937,-450.0,0.00029,3]
[311010260,1704862231946,-155.0,0.00030955,2]
[311010261,1704862231955,-205.29054917,0.00030956,5]
[311010262,1704862232010,-594.70945083,0.00030956,5]
[311010263,1704862232020,-500.0,0.00031,3]
[311010264,1704862232029,-162.13,0.00031161,2]
[311010265,1704862232038,-500.0,0.000315,2]
[311010266,1704862232048,-196.112,0.0003194,2]
[311010267,1704862232057,-17233.81176966,0.00032,2]
[311010270,1704862232091,-332.06921319,0.00032,2]
[311010290,1704862237789,-2434.11901715,0.00032,2]
[311010291,1704862237799,-3000.0,0.00032,2]
[311010292,1704862237807,-3000.0,0.0003201,2]
[311010293,1704862237817,-3000.0,0.0003202,2]
[311010294,1704862237827,-3000.0,0.0003203,2]
[311010295,1704862237838,-4029.609117,0.0003204,2]
[311010296,1704862237848,-834.0,0.0003295,2]
[311010297,1704862237857,-862.082,0.0003295,2]
[311010298,1704862237866,-196.868,0.0003295,2]
[311010299,1704862237875,-1234.0,0.0003295,2]
[311010300,1704862237885,-316.953,0.0003295,2]
[311010301,1704862237894,-318.0,0.0003295,2]
[311010302,1704862237903,-881.0,0.0003295,2]
[311010303,1704862237912,-150.0,0.0003295,2]
[311010304,1704862237922,-2269.0,0.0003295,2]
[311010305,1704862237931,-2439.153,0.0003295,2]
[311010306,1704862237940,-925.362,0.0003295,2]
[311010307,1704862237949,-2900.0,0.0003295,2]
[311010308,1704862237958,-151.0,0.0003295,2]
[311010309,1704862237967,-152.847,0.0003295,2]
[311010310,1704862237976,-1028.0,0.0003295,2]
[311010311,1704862237985,-151.964,0.0003295,2]
[311010312,1704862237994,-152.9,0.0003295,2]
[311010313,1704862238003,-153.0,0.0003295,2]
[311010314,1704862238013,-152.586,0.0003295,2]
[311010315,1704862238021,-215.072,0.0003295,2]
[311010316,1704862238031,-222.618,0.0003295,2]
[311010317,1704862238040,-250.0,0.00032983,2]
[311010318,1704862238050,-550.0,0.00033,3]
[311010319,1704862238059,-8732.05,0.00033003,2]
[311010320,1704862238068,-542.24,0.00033033,15]
[311010321,1704862238077,-173.62,0.00033058,2]
[311010322,1704862238086,-500.0,0.00033078,2]
[311010323,1704862238096,-327.48,0.00033123,2]
[311010324,1704862238105,-207.0,0.00033134,2]
[311010325,1704862238114,-250.0,0.00033166,111]
[311010326,1704862238123,-155.8,0.00033182,2]
[311010327,1704862238132,-150.0,0.00033379,2]
[311010328,1704862238142,-162.13,0.00033425,2]
[311010329,1704862238152,-366.59,0.00033613,2]
[311010330,1704862238161,-4247.57,0.00033623,2]
[311010331,1704862238172,-154.51,0.00033735,2]
[311010332,1704862238181,-5531.00878285,0.00033875,2]
[311010334,1704862238190,-500.0,0.00033931,2]
[311010336,1704862238199,-200.0,0.00033931,2]
[311010338,1704862238209,-911.71462714,0.00034,2]
[311010340,1704862238218,-1000.0,0.00034,4]
[311010342,1704862238227,-150.0,0.00034337,2]
[311010344,1704862238236,-150.0,0.00034518,2]
[311010346,1704862238245,-2557.89,0.00034521,2]
[311010348,1704862238254,-151.0,0.00034745,120]
[311010350,1704862238263,-150.0,0.00034949,2]
[311010352,1704862238272,-280.99110627,0.00034989,4]
[311010354,1704862238281,-3761.63134829,0.0003499,10]
[311010356,1704862238293,-214.77865171,0.0003499,10]
[311010358,1704862238303,-309.8016069,0.00034999,4]
[311010360,1704862238312,-5305.87221204,0.00035,4]
[311010361,1704862238373,-608.0627175,0.00035,4]
[311010362,1704862238384,-1844.42447337,0.00035,4]
[311010363,1704862238396,-3771.59982427,0.00035,4]
[311010364,1704862238405,-600.0,0.00035,3]
[311010365,1704862238414,-20000.0,0.00035,2]
[311010366,1704862238424,-150.0,0.00035139,2]
[311010367,1704862238433,-150.0,0.00035207,2]
[311010368,1704862238442,-150.0,0.00035229,2]
[311010369,1704862238451,-600.0,0.000353,12]
[311010370,1704862238460,-211.17259107,0.00035321,2]
[311010371,1704862238469,-165.7397368,0.00035397,7]
[311010372,1704862238478,-1200.0,0.000354,12]
[311010373,1704862238487,-160.03274869,0.000354,2]
[311010374,1704862238496,-160.03274861,0.00035409,2]
[311010375,1704862238505,-782.69568525,0.00035413,2]
[311010376,1704862238515,-150.0,0.00035415,2]
[311010377,1704862238524,-17462.8563656,0.00035416,2]
[311010378,1704862238570,-152.693,0.0003295,2]
[311010379,1704862238579,-526.52365167,0.00035416,2]
[311010380,1704862238598,-2235.50125202,0.00035416,2]
[311010381,1704862238622,-7483.97090182,0.00035416,2]
[311010382,1704862238634,-2256.53820031,0.00035416,2]
[311010383,1704862238649,-663.71140911,0.00035416,2]
[311010392,1704862240478,-3448.54581947,0.00035416,2]
[311010393,1704862240487,-160.03274861,0.00035418,2]
[311010394,1704862240497,-160.03274861,0.00035427,2]
[311010395,1704862240506,-160.03274861,0.00035436,2]
[311010396,1704862240515,-160.03274861,0.00035445,2]
[311010397,1704862240524,-160.03274861,0.00035454,2]
[311010398,1704862240538,-151.0,0.00035454,30]
[311010399,1704862240548,-160.03274861,0.00035462,2]
[311010400,1704862240557,-160.03274861,0.00035471,2]
[311010401,1704862240569,-160.03274861,0.0003548,2]
[311010402,1704862240578,-160.03274861,0.00035489,2]
[311010403,1704862240586,-42213.90213011,0.0003549,7]
[311010404,1704862240598,-555.70677305,0.0003549,7]
[311010405,1704862240609,-720.41461576,0.0003549,7]
[311010406,1704862240625,-253.80435007,0.0003549,7]
[311010407,1704862240648,-2203.4,0.0003549,7]
[311010408,1704862240683,-1048.582763,0.0003549,7]
[311010409,1704862240695,-2710.38515923,0.0003549,7]
[311010410,1704862240811,-676.14249064,0.0003549,7]
[311010413,1704862241161,-120029.95101014,0.0003549,7]
[311010414,1704862241170,-152.50260852,0.00035497,2]
[311010415,1704862241180,-160.03274861,0.00035498,2]
[311010416,1704862241189,-323236.47371916,0.000355,4]
[311010417,1704862241201,-1293.85122542,0.000355,4]
[311010418,1704862241212,-1602.7378045,0.000355,4]
[311010419,1704862241224,-613.46221154,0.000355,4]
[311010420,1704862241236,-306.09729367,0.000355,4]
[311010431,1704862242738,-1373.69775017,0.000355,4]
[311010432,1704862242750,-517.19118167,0.000355,4]
[311010433,1704862242762,-21381.78602793,0.000355,4]
[311010434,1704862242799,-449.80399366,0.000355,4]
[311010435,1704862242810,-312.23108205,0.000355,4]
[311010436,1704862242821,-8491.64494076,0.000355,4]
[311010437,1704862242857,-851.33231667,0.000355,4]
[311010438,1704862242869,-1243.17295712,0.000355,4]
[311010439,1704862242880,-520.16923751,0.000355,4]
[311010440,1704862242891,-442.25115126,0.000355,4]
[311010441,1704862242902,-346.11167018,0.000355,4]
[311010442,1704862242913,-620.38351261,0.000355,4]
[311010443,1704862242925,-537.53846344,0.000355,4]
[311010444,1704862242936,-26709.95425938,0.000355,4]
[311010445,1704862242947,-4611.27068961,0.000355,4]
[311010446,1704862242958,-4153.60957454,0.000355,4]
[311010447,1704862243045,-794.14994472,0.000355,4]
[311010448,1704862243056,-301.02675859,0.000355,4]
[311010449,1704862243067,-5573.94477553,0.000355,4]
[311010450,1704862243078,-293.30521316,0.000355,4]
[311010451,1704862243139,-6812.01156649,0.000355,4]
[311010452,1704862243151,-22043.05963123,0.000355,4]
[311010454,1704862243162,-361.79411109,0.000355,4]
[311010456,1704862243174,-2621.4719078,0.000355,4]
[311010457,1704862243186,-763.43869,0.000355,4]
[311010458,1704862243197,-627.27,0.000355,4]
[311010459,1704862243208,-3925.00001,0.000355,4]
[311010461,1704862243219,-3330.0,0.000355,4]
[311010462,1704862243230,-512.45846107,0.000355,4]
[311010463,1704862243250,-1198.38187691,0.000355,4]
[311010464,1704862243262,-2237.30399341,0.000355,4]
[311010465,1704862243274,-2418.12076515,0.000355,4]
[311010466,1704862243285,-974.91771303,0.000355,4]
[311010467,1704862243297,-16997.60024495,0.000355,4]
[311010468,1704862243309,-78862.81920655,0.000355,4]
[311010469,1704862243320,-12803.61959338,0.000355,4]
[311010470,1704862243330,-435.34602988,0.000355,4]
[311010471,1704862243341,-2689.57781667,0.000355,4]
[311010472,1704862243698,1747.92261,0.00037181,30]
[311010480,1704862245847,-150.515,0.0003295,2]
[311010481,1704862245856,-155.0,0.00035499,2]
[311010482,1704862245865,-224.49420827,0.00035499,2]
[311010483,1704862246172,-1000.0,0.00035499,2]
[311010484,1704862246186,-693.23740564,0.00035499,2]
[311010485,1704862246196,-3340.52122002,0.000355,4]
[311010486,1704862246207,-322.8916,0.000355,4]
[311010487,1704862246220,-4647.005672,0.000355,4]
[311010488,1704862246231,-557.04687763,0.000355,4]
[311010489,1704862246254,-1565.29012661,0.000355,4]
[311010490,1704862246265,-6347.94313769,0.000355,4]
[311010491,1704862246278,-1270.50296806,0.000355,4]
[311010492,1704862246302,-11933.43806838,0.000355,4]
[311010493,1704862246315,-1207.22335713,0.000355,4]
[311010494,1704862246329,-3729.92354753,0.000355,4]
[311010495,1704862246349,-2617.3629419,0.000355,4]
[311010496,1704862246372,-3685.87365913,0.000355,4]
[311010497,1704862246385,-1376.42309378,0.000355,4]
[311010498,1704862251295,8291.01,0.00037181,30]
[311010499,1704862270273,6114.0,0.00023,2]
[311010500,1704862270300,782826.89822746,0.00023,2]
[311010501,1704862328108,561.36783443,0.000199,3]
[311010502,1704862409874,151.4011,0.00022501,2]
[311010503,1704862410932,151.4011,0.00022501,2]
[311010504,1704862411810,151.4011,0.00022501,2]
[311010505,1704862412506,151.4011,0.00022501,2]
[311010506,1704862413123,151.4011,0.00022501,2]
[311010507,1704862431328,151.4011,0.00022501,2]
[311010508,1704862432135,151.4011,0.00022501,2]
[311010509,1704862432857,151.4011,0.00022501,2]
[311010510,1704862433832,151.4011,0.00022501,2]
[311010511,1704862434563,151.4011,0.00022501,2]
[311010512,1704862443813,926.4658,0.00022899,14]
[311010513,1704862449411,1075.919999,0.0002,2]
[311010514,1704862469316,1988.29286585,0.00037181,30]
[311010515,1704862485928,1965.990009,0.0003718,30]
[311010516,1704862645429,32701.74261607,0.0003718,30]
[311010517,1704862656925,26881.12335307,0.0003718,30]
[311010518,1704862713267,151.4011,0.00022501,2]
[311010519,1704862714544,151.4011,0.00022501,2]
[311010520,1704862715492,151.4011,0.00022501,2]
[311010521,1704862716329,151.4011,0.00022501,2]
[311010522,1704862717024,151.4011,0.00022501,2]
[311010523,1704862717808,151.4011,0.00022501,2]
[311010524,1704862719574,151.4011,0.00022501,2]
[311010525,1704862719809,151.4011,0.00022501,2]
[311010526,1704862720558,151.4011,0.00022501,2]
[311010527,1704862721315,151.4011,0.00022501,2]
[311010528,1704862893580,1932.752725,0.00037173,30]
[311010529,1704862988718,304.949637,0.00037173,30]
[311010530,1704863130905,24620.56496067,0.00037208,30]
[311010531,1704863233503,500.0,0.000225,8]
[311010532,1704863235470,1000.0,0.000226,8]
[311010533,1704863237575,1600.0,0.000227,8]
[311010534,1704863240494,2100.0,0.000228,8]
[311010535,1704863241728,2600.0,0.000229,8]
[311010540,1704863379909,1414.15749579,0.000229,5]
[311010541,1704863384837,1965.990009,0.00037208,30]
[311010551,1704863432046,-200.0,0.00022799,2]
[311010552,1704863432056,-155.64868607,0.000228,2]
[311010553,1704863432066,-2248.2868986,0.00022899,2]
[311010554,1704863432075,-300.0,0.00022899,2]
[311010555,1704863432085,-166.32287272,0.000229,2]
[311010556,1704863432094,-1550.18629899,0.000229,2]
[311010558,1704863438020,-808.76404495,0.000229,2]
[311010559,1704863438036,-542.21043821,0.000229,2]
[311010560,1704863438045,-165.7397368,0.000229,2]
[311010561,1704863438054,-888.19897784,0.000229,2]
[311010562,1704863438063,-155.64868605,0.00022944,2]
[311010563,1704863438072,-1383.72738181,0.00022988,2]
[311010564,1704863438081,-264.85709996,0.00022988,2]
[311010565,1704863438090,-4615.69506017,0.00022998,2]
[311010566,1704863438101,-582.10910326,0.00022998,2]
[311010567,1704863438111,-1666.38784374,0.00022999,2]
[311010568,1704863438130,-308.9548033,0.00022999,2]
[311010569,1704863438159,-5076.45103855,0.00022999,2]
[311010570,1704863438188,-673.59948466,0.00022999,2]
[311010571,1704863438200,-150.0,0.00022999,2]
[311010572,1704863438209,-150.0,0.00022999,2]
[311010573,1704863438218,-150.0,0.00022999,2]
[311010574,1704863438227,-150.0,0.00022999,2]
[311010575,1704863438522,-37349.7072986,0.00023,2]
[311010576,1704863438539,-1085.41820824,0.00023,2]
[311010577,1704863438558,-272.84650601,0.00023,2]
[311010578,1704863438569,-311.21120683,0.00023,2]
[311010579,1704863438580,-1045.21450603,0.00023,2]
[311010580,1704863438592,-680.31421281,0.00023,2]
[311010581,1704863438605,-783.45476951,0.00023,2]
[311010582,1704863440323,-271.33310921,0.00023,2]
[311010583,1704863440335,-305.60174642,0.00023,2]
[311010584,1704863440347,-26819.27700315,0.00023,2]
[311010585,1704863440852,-804.29,0.00023,2]
[311010586,1704863440908,-563.36498808,0.00023,2]
[311010587,1704863440964,-817.83680266,0.00023,2]
[311010588,1704863440976,-294.47959489,0.00023,2]
[311010589,1704863441024,-704.39028487,0.00023,2]
[311010609,1704863443014,-1519.23135932,0.00023,2]
[311010610,1704863443028,-34602.73852486,0.00023,2]
[311010611,1704863443054,-1524033.92838976,0.00023,2]
[311010612,1704863443064,-503966.07161024,0.00023,2]
[311010613,1704863443076,-1312.43827953,0.00023,2]
[311010614,1704863443088,-256.974,0.00023,2]
[311010615,1704863443108,-688.56235155,0.00023,2]
[311010616,1704863443164,-746.41764845,0.00023,2]
[311010617,1704863443177,-382.60066523,0.00023,2]
[311010618,1704863443219,-748.77934784,0.00023,2]
[311010619,1704863443231,-185116.33435187,0.00023,2]
[311010620,1704863443243,-2177403.47353533,0.00023,2]
[311010627,1704863447201,-263.04335995,0.00023,2]
[311010628,1704863447311,-1000.15444357,0.00023,2]
[311010629,1704863447337,-10491.93218859,0.00023,2]
[311010630,1704863447348,-48354.60000022,0.00023,2]
[311010631,1704863447360,-2398.79871371,0.00023,2]
[311010632,1704863447395,-52946.07043832,0.00023,2]
[311010633,1704863447407,-2340.86993388,0.00023,2]
[311010634,1704863512853,151.4011,0.00022501,2]
[311010635,1704863515592,151.4011,0.00022501,2]
[311010636,1704863516450,151.4011,0.00022501,2]
[311010637,1704863517297,151.4011,0.00022501,2]
[311010638,1704863518272,151.4011,0.00022501,2]
[311010639,1704863518805,151.4011,0.00022501,2]
[311010640,1704863519759,151.4011,0.00022501,2]
[311010641,1704863520441,151.4011,0.00022501,2]
[311010642,1704863521919,151.4011,0.00022501,2]
[311010643,1704863523534,151.4011,0.00022501,2]
[311010652,1704863792975,1932.752725,0.00037147,30]
[311010653,1704863847741,9341.31302636,0.00037147,30]
[311010654,1704863893899,304.949637,0.00037147,30]
[311010655,1704864137868,3155.73908087,0.00021833,2]
[311010657,1704864166978,155.0,0.00021833,2]
[311010658,1704864168336,50491.89883886,0.00021833,2]
[311010659,1704864168584,234.60743035,0.00021833,2]
[311010660,1704864181503,500.0,0.00021833,2]
[311010661,1704864182985,225.5216828,0.00021833,2]
[311010662,1704864184585,234.60743035,0.00021833,2]
[311010663,1704864186341,50491.89883886,0.00021833,2]
[311010664,1704864197507,500.0,0.00021833,2]
[311010665,1704864202638,234.60743035,0.00021833,2]
[311010666,1704864206373,50491.89883886,0.00021833,2]
[311010667,1704864222342,50491.89883886,0.00021833,2]
[311010668,1704864222657,234.60743035,0.00021833,2]
[311010669,1704864240341,50491.89883886,0.00021833,2]
[311010670,1704864242587,348.76443064,0.00021833,2]
[311010671,1704864258364,11261.31006145,0.00021833,2]
[311010672,1704864268375,241.3,0.00022371,2]
[311010673,1704864293480,1965.990009,0.00037155,30]
[311010674,1704864345911,414.91867762,0.00020226,2]
[311010675,1704864364790,564.08634482,0.0002014,2]
[311010676,1704864409675,205.89,0.0002064,2]
[311010677,1704864416219,153.55,0.00022441,2]
[311010699,1704864632155,-363.52386787,0.00022598,2]
[311010700,1704864632166,-1043.83416141,0.00022599,2]
[311010701,1704864632175,-1249.048277,0.00022599,2]
[311010702,1704864632185,-386.39411499,0.000226,2]
[311010703,1704864632195,-155.0,0.000226,2]
[311010704,1704864632205,-3454.24359008,0.00022601,2]
[311010705,1704864632217,-270.98804803,0.00022601,2]
[311010706,1704864632254,-300.0,0.00022601,2]
[311010707,1704864632287,-546.06149217,0.00022601,2]
[311010708,1704864632300,-125.14688022,0.00022601,2]
[311010709,1704864632310,-306.03824946,0.00022601,2]
[311010710,1704864632444,-97.66675184,0.00022601,2]
[311010711,1704864632454,-200.0,0.00022601,2]
[311010712,1704864632464,-205.22000788,0.00022602,2]
[311010714,1704864632477,-332.96410193,0.00022602,2]
[311010717,1704864632521,-596.60581653,0.00022602,2]
[311010718,1704864632530,-202.3673638,0.00022602,2]
[311010719,1704864632540,-12.91595226,0.00022602,2]
[311010720,1704864632552,-142.08404774,0.00022602,2]
[311010721,1704864632561,-248.37048046,0.00022603,2]
[311010722,1704864632571,-160.1769147,0.00022603,2]
[311010723,1704864632581,-329.12953768,0.00022605,2]
[311010724,1704864632594,-559.71247832,0.00022605,2]
[311010725,1704864638064,-400.0,0.00022598,2]
[311010726,1704864638073,-23419.28424499,0.00022605,2]
[311010727,1704864638083,-22164.36926169,0.00022607,2]
[311010728,1704864638185,-439.23596064,0.00022607,2]
[311010729,1704864638229,-2164.30305186,0.00022607,2]
[311010730,1704864638325,-3980.46536542,0.00022607,2]
[311010731,1704864638405,-2461.16702176,0.00022607,2]
[311010732,1704864638417,-3355.883,0.00022607,2]
[311010733,1704864638430,-8369.60954569,0.00022607,2]
[311010734,1704864638439,-154.64806336,0.00022634,2]
[311010735,1704864638448,-210.21,0.00022635,2]
[311010736,1704864638457,-1653.49,0.00022635,2]
[311010737,1704864638466,-911.21,0.00022635,2]
[311010739,1704864638475,-429.04606555,0.00022726,2]
[311010741,1704864638484,-251.33,0.00022726,2]
[311010742,1704864638496,-5450.74756707,0.00022727,2]
[311010744,1704864638505,-1587.75075709,0.00022738,2]
[311010746,1704864638514,-1894.45782456,0.00022895,2]
[311010748,1704864638524,-1000.0,0.00022899,2]
[311010749,1704864638533,-3231.1889,0.000229,2]
[311010750,1704864638542,-456.44,0.000229,2]
[311010751,1704864638551,-1292.96,0.000229,2]
[311010752,1704864638560,-205.89,0.00022903,2]
[311010753,1704864638570,-231.35166498,0.00022976,2]
[311010754,1704864638579,-293.27,0.00022994,2]
[311010755,1704864638589,-161.23970274,0.00022996,2]
[311010756,1704864638598,-265.0091565,0.00022996,2]
[311010758,1704864638609,-426.6045854,0.00022997,2]
[311010760,1704864638618,-9650.39,0.00022997,2]
[311010761,1704864638627,-1955.71,0.00022997,2]
[311010762,1704864638636,-2139.22891319,0.00022998,2]
[311010764,1704864638645,-597.21,0.00022998,2]
[311010766,1704864638654,-349.31,0.00022998,2]
[311010768,1704864638664,-656.88913259,0.00022999,2]
[311010770,1704864638673,-13849.9414694,0.00022999,2]
[311010773,1704864638697,-731.0,0.00022999,2]
[311010775,1704864638712,-642.68112888,0.00022999,2]
[311010776,1704864638724,-108770.77601911,0.00022999,2]
[311010777,1704864638732,-150.99,0.00022999,2]
[311010778,1704864638742,-367917.36031955,0.00023,2]
[311010780,1704864640581,-2864.08439039,0.00023,2]
[311010781,1704864640606,-3979.49315772,0.00023,2]
[311010782,1704864640617,-738.70204546,0.00023,2]
[311010783,1704864640633,-11120.26590994,0.00023,2]
[311010786,1704864643092,-825.5013605,0.00023,2]
[311010787,1704864643425,-526.2500001,0.00023,2]
[311010795,1704864649968,-386.39411499,0.00022999,2]
[311010796,1704864649980,-4696.4400105,0.00022999,2]
[311010797,1704864649993,-218.64004931,0.00022999,2]
[311010798,1704864650006,-202.3673638,0.00022999,2]
[311010799,1704864650020,-363.52386787,0.00022999,2]
[311010800,1704864650033,-403.7050013,0.00022999,2]
[311010801,1704864650046,-10112.02810003,0.00023,2]
[311010802,1704864650062,-5182.25613865,0.00023,2]
[311010803,1704864650079,-765.70694923,0.00023,2]
[311010804,1704864650095,-1399.0500003,0.00023,2]
[311010805,1704864650254,-1834.83887827,0.00023,2]
[311010806,1704864650269,-1160.59036222,0.00023,2]
[311010807,1704864650285,-1632.30660507,0.00023,2]
[311010808,1704864650306,-714.87905525,0.00023,2]
[311010809,1704864650322,-5289.90429568,0.00023,2]
[311010810,1704864650337,-362.84292556,0.00023,2]
[311010811,1704864650352,-1131.88603091,0.00023,2]
[311010812,1704864650368,-419.57986073,0.00023,2]
[311010813,1704864650399,-297.77495398,0.00023,2]
[311010814,1704864650414,-299.12354907,0.00023,2]
[311010815,1704864650430,-501.29256854,0.00023,2]
[311010816,1704864650465,-1118.61757865,0.00023,2]
[311010817,1704864650503,-1570.38300814,0.00023,2]
[311010819,1704864692595,1932.752725,0.00037153,30]
[311010835,1704864783681,151.4011,0.00022501,2]
[311010836,1704864786347,151.4011,0.00022501,2]
[311010837,1704864786575,151.4011,0.00022501,2]
[311010838,1704864787493,151.4011,0.00022501,2]
[311010839,1704864788298,151.4011,0.00022501,2]
[311010840,1704864789086,151.4011,0.00022501,2]
[311010841,1704864790533,151.4011,0.00022501,2]
[311010842,1704864792075,151.4011,0.00022501,2]
[311010843,1704864792599,151.4011,0.00022501,2]
[311010844,1704864793656,151.4011,0.00022501,2]
[311010845,1704864794423,304.949637,0.00037153,30]
[311010847,1704864800061,151.4011,0.00022501,2]
[311010848,1704864800765,151.4011,0.00022501,2]
[311010849,1704864801662,151.4011,0.00022501,2]
[311010850,1704864802628,151.4011,0.00022501,2]